bitfinex/quotes_BTCUSD_20220111
["timestamp","ask_amount","ask_price","bid_price","bid_amount"]
[1641926174679,0.29327026,42810.0,42801.0,0.104405]
[1641926174879,0.00045488,42804.0,42801.0,0.104405]
[1641926175078,0.00045488,42804.0,42802.0,0.375899]
[1641926175283,1.23033581,42803.0,42801.0,0.058405]
[1641926175484,0.29212026,42802.0,42800.0,0.3499]
[1641926175679,1.27320009,42803.0,42800.0,0.25]
[1641926176079,0.05841234,42802.0,42800.0,0.25]
[1641926176528,0.11682734,42802.0,42800.0,0.25]
[1641926177527,1.28292665,42801.0,42800.0,0.25]
[1641926179229,0.28292665,42801.0,42800.0,0.25]
[1641926179828,0.78292665,42801.0,42800.0,0.25]
[1641926180030,0.76058854,42801.0,42800.0,0.25]
[1641926180868,0.76058854,42801.0,42800.0,0.1917]
[1641926181567,0.75058854,42801.0,42800.0,0.1917]
[1641926181967,0.49,42801.0,42800.0,0.1917]
[1641926184017,0.99,42801.0,42800.0,0.1917]
[1641926184817,1.04,42801.0,42800.0,0.1917]
[1641926185218,1.04,42801.0,42790.0,0.21817191]
[1641926185219,1.2,42800.0,42790.0,0.21817191]
[1641926185420,1.2,42800.0,42790.0,0.10005]
[1641926185421,0.1,42797.0,42790.0,0.10005]
[1641926185723,0.32062032,42794.0,42790.0,0.00015]
[1641926185919,0.08969596,42793.0,42790.0,0.00015]
[1641926186120,0.37614969,42792.0,42782.0,0.10005]
[1641926186318,0.37614969,42792.0,42786.0,0.116836]
[1641926186521,0.05,42792.0,42786.0,0.116836]
[1641926186721,0.0497,42792.0,42787.0,0.00015]
[1641926186920,0.00045357,42791.0,42787.0,0.00015]
[1641926187122,0.00015357,42791.0,42787.0,0.00015]
[1641926187321,0.00015357,42791.0,42788.0,0.058422]
[1641926187521,0.71207629,42794.0,42788.0,0.058422]
[1641926187771,0.32017389,42794.0,42789.0,0.00015]
[1641926188171,0.3054,42798.0,42788.0,0.003]
[1641926188375,0.69638178,42798.0,42792.0,0.058415]
[1641926188571,0.39068178,42798.0,42792.0,0.058415]
[1641926188972,0.39042437,42798.0,42792.0,0.058415]
[1641926189170,0.28344142,42797.0,42792.0,0.058415]
[1641926189371,0.00045296,42797.0,42792.0,0.058415]
[1641926190074,0.00045296,42797.0,42792.0,0.060415]
[1641926191431,0.00045296,42797.0,42792.0,0.058415]
[1641926192021,0.00045296,42797.0,42792.0,0.066415]
[1641926192522,0.058417,42796.0,42792.0,0.066415]
[1641926192721,0.23045296,42797.0,42792.0,0.066415]
[1641926192925,0.23045032,42797.0,42792.0,0.066415]
[1641926193222,0.23045032,42797.0,42792.0,0.058415]
[1641926194024,0.23045032,42797.0,42792.0,0.066415]
[1641926195025,0.058418,42795.0,42792.0,0.008]
[1641926195270,0.80184089,42794.0,42788.0,0.00015]
[1641926195470,0.80184089,42794.0,42790.0,0.00015]
[1641926195770,0.30242504,42792.0,42790.0,0.00015]
[1641926195973,0.058425,42793.0,42790.0,0.01115]
[1641926196270,0.058425,42793.0,42790.0,0.011]
[1641926196970,0.6,42791.0,42790.0,0.011]
[1641926197170,0.6,42791.0,42788.0,0.00015]
[1641926197372,0.6,42791.0,42790.0,0.00015]
[1641926197572,0.4,42790.0,42787.0,0.06005]
[1641926197771,0.26268678,42792.0,42787.0,0.06005]
[1641926197972,0.359,42791.0,42790.0,0.018]
[1641926198373,0.009,42791.0,42790.0,0.018]
[1641926199221,0.26268678,42792.0,42784.0,0.00071266]
[1641926199523,0.26268678,42792.0,42786.0,0.058425]
[1641926200121,0.27068678,42792.0,42786.0,0.096425]
[1641926201226,0.058425,42791.0,42786.0,0.058425]
[1641926201423,0.26268678,42792.0,42786.0,0.058425]
[1641926202024,0.27068678,42792.0,42786.0,0.096425]
[1641926202424,0.008,42792.0,42786.0,0.096425]
[1641926203270,0.00045079,42793.0,42786.0,0.058425]
[1641926203571,0.28030074,42793.0,42786.0,0.058425]
[1641926203773,0.28030078,42793.0,42786.0,0.058425]
[1641926203971,0.50198139,42790.0,42786.0,0.66538641]
[1641926204177,0.28472408,42789.0,42786.0,0.60696141]
[1641926204371,0.1,42787.0,42780.0,0.00015]
[1641926204572,0.28472408,42786.0,42780.0,0.00015]
[1641926204771,0.46449095,42781.0,42777.0,0.76928188]
[1641926204972,0.44992106,42780.0,42774.0,0.77863788]
[1641926205173,0.49497733,42780.0,42774.0,0.77863788]
[1641926205372,0.33441958,42780.0,42776.0,0.058437]
[1641926205972,0.34941958,42780.0,42776.0,0.058437]
[1641926206175,0.01172022,42780.0,42776.0,0.058437]
[1641926206431,0.222528,42795.0,42782.0,0.058413]
[1641926206432,0.20088,42793.0,42782.0,0.058413]
[1641926206622,0.19991396,42793.0,42783.0,0.469829]
[1641926206821,0.19991396,42793.0,42783.0,0.0472]
[1641926207421,0.00053471,42790.0,42783.0,0.04844659]
[1641926207622,0.00053471,42790.0,42788.0,0.058415]
[1641926208021,0.00153471,42790.0,42788.0,0.058415]
[1641926208522,0.001,42790.0,42788.0,0.058415]
[1641926208927,0.001,42790.0,42788.0,0.053415]
[1641926209924,0.00053471,42791.0,42788.0,0.053415]
[1641926210166,0.002,42790.0,42788.0,0.082415]
[1641926211373,0.00213854,42798.0,42789.0,1.4983034]
[1641926211572,0.00213854,42798.0,42790.0,0.6630223]
[1641926211768,0.00213854,42798.0,42794.0,0.375899]
[1641926211969,0.00213854,42798.0,42797.0,0.25]
[1641926212169,0.00015,42800.0,42797.0,0.375899]
[1641926212371,0.00015,42800.0,42795.0,0.0472]
[1641926212569,0.00015,42800.0,42796.0,0.375899]
[1641926212767,0.00015,42800.0,42796.0,0.425899]
[1641926213169,0.00015,42800.0,42796.0,0.95131148]
[1641926213370,0.00015,42800.0,42798.0,0.058396]
[1641926213570,0.00015,42800.0,42799.0,0.375899]
[1641926214025,0.00015,42800.0,42799.0,0.385899]
[1641926215224,0.00015,42800.0,42799.0,0.375899]
[1641926215425,0.00015,42800.0,42799.0,0.492694]
[1641926216024,0.00015,42800.0,42799.0,0.506694]
[1641926217324,0.00015,42800.0,42799.0,0.556694]
[1641926217526,0.00015,42800.0,42799.0,1.03936153]
[1641926217775,0.00015,42800.0,42799.0,1.08936153]
[1641926217975,0.00053054,42802.0,42800.0,0.8]
[1641926218174,0.00053054,42802.0,42801.0,0.71890822]
[1641926218374,0.00053054,42802.0,42801.0,1.10944519]
[1641926218575,0.00053054,42802.0,42801.0,1.20944519]
[1641926218974,0.00212186,42808.0,42802.0,0.7]
[1641926219176,0.06830616,42821.0,42807.0,0.69068146]
[1641926219381,0.00136064,42825.0,42818.0,0.1]
[1641926219578,0.00136064,42825.0,42823.0,0.00122627]
[1641926219774,0.00136064,42825.0,42824.0,0.0472]
[1641926219974,0.00136064,42825.0,42824.0,0.04682]
[1641926220176,0.001,42826.0,42824.0,0.64682]
[1641926220373,0.59617825,42827.0,42825.0,0.00124581]
[1641926220575,0.0368854,42831.0,42827.0,0.8]
[1641926220775,0.0340354,42831.0,42829.0,0.775899]
[1641926220977,0.001,42836.0,42833.0,0.375683]
[1641926221175,0.01105351,42844.0,42837.0,0.375683]
[1641926221436,0.01105351,42844.0,42834.0,0.33518552]
[1641926221437,0.81010697,42839.0,42838.0,0.10679495]
[1641926221626,0.81010697,42839.0,42838.0,0.105538]
[1641926221827,0.81010697,42839.0,42838.0,0.0472]
[1641926222031,0.41010697,42839.0,42838.0,0.0552]
[1641926222225,0.00112048,42843.0,42838.0,0.0552]
[1641926222427,0.00112048,42843.0,42842.0,0.00124486]
[1641926222627,0.00112048,42843.0,42841.0,0.0472]
[1641926222827,0.00112048,42843.0,42838.0,0.008]
[1641926222828,0.1728,42839.0,42838.0,0.008]
[1641926223027,0.46078552,42839.0,42838.0,0.008]
[1641926223229,0.1728,42839.0,42838.0,0.008]
[1641926223428,0.1566,42839.0,42838.0,0.00129675]
[1641926223832,0.00028016,42843.0,42838.0,0.00129675]
[1641926224034,0.00028016,42843.0,42842.0,0.675683]
[1641926224233,0.01105351,42844.0,42842.0,0.47695092]
[1641926224430,0.01105351,42844.0,42842.0,0.57695092]
[1641926224634,0.01105351,42844.0,42843.0,1.175683]
[1641926224831,0.01105351,42844.0,42843.0,0.375683]
[1641926225035,0.01105351,42844.0,42843.0,0.522883]
[1641926225670,0.01105351,42844.0,42843.0,0.422883]
[1641926226172,0.01105351,42844.0,42843.0,0.433883]
[1641926226370,0.04412811,42845.0,42843.0,0.433883]
[1641926227275,0.04412811,42845.0,42843.0,0.422883]
[1641926228173,0.04412811,42845.0,42843.0,0.431883]
[1641926228372,0.04412811,42845.0,42843.0,0.0562]
[1641926228773,0.04412811,42845.0,42843.0,0.05748649]
[1641926229026,0.04412811,42845.0,42844.0,0.375683]
[1641926230124,0.04412811,42845.0,42844.0,0.388683]
[1641926231126,0.04412811,42845.0,42844.0,0.013]
[1641926231325,0.04412811,42845.0,42843.0,0.205442]
[1641926231523,0.04412811,42845.0,42844.0,0.375683]
[1641926232127,0.04412811,42845.0,42844.0,0.387683]
[1641926232329,0.00031119,42849.0,42846.0,0.375683]
[1641926232530,0.02015,42850.0,42849.0,0.058318]
[1641926232773,0.02015,42850.0,42849.0,0.581101]
[1641926232973,0.02015,42850.0,42849.0,0.5823955]
[1641926233175,0.77015,42850.0,42849.0,0.3523955]
[1641926233376,0.77015,42850.0,42849.0,0.1471]
[1641926234073,0.77015,42850.0,42849.0,0.1601]
[1641926234273,1.04017134,42850.0,42849.0,0.1601]
[1641926234473,1.21330834,42850.0,42849.0,0.0602]
[1641926234674,1.21330834,42850.0,42849.0,0.013]
[1641926235274,1.21330834,42850.0,42841.0,0.0999]
[1641926235477,0.42691057,42846.0,42841.0,0.0999]
[1641926235675,0.95757776,42842.0,42841.0,0.0999]
[1641926235876,1.13071476,42842.0,42841.0,0.0999]
[1641926236076,1.13071476,42842.0,42841.0,0.1179]
[1641926236077,0.45757776,42842.0,42841.0,0.1179]
[1641926236277,0.70757776,42842.0,42841.0,0.1179]
[1641926236526,0.76269023,42842.0,42841.0,0.1179]
[1641926237423,0.76269023,42842.0,42841.0,0.0999]
[1641926237626,0.75568825,42842.0,42841.0,0.0999]
[1641926237823,0.30511247,42842.0,42841.0,0.0999]
[1641926238225,0.038,42842.0,42841.0,0.1049]
[1641926239226,0.70683135,42842.0,42841.0,0.1049]
[1641926239430,1.03025452,42842.0,42834.0,0.00122759]
[1641926239828,1.03025452,42842.0,42836.0,0.058352]
[1641926240271,0.66883135,42842.0,42834.0,0.01222759]
[1641926240469,0.4,42842.0,42834.0,0.01222759]
[1641926240669,0.4,42842.0,42834.0,0.00722759]
[1641926240969,0.4,42842.0,42837.0,0.11669]
[1641926240970,0.00050999,42840.0,42837.0,0.11669]
[1641926241469,0.3279403,42839.0,42837.0,0.11669]
[1641926241670,0.3279403,42839.0,42833.0,0.0999]
[1641926242070,0.3279403,42839.0,42833.0,0.1219]
[1641926242370,0.3279403,42839.0,42836.0,0.116693]
[1641926242773,1.39067287,42837.0,42833.0,0.1219]
[1641926242969,0.94067287,42837.0,42833.0,0.1219]
[1641926243171,0.94067287,42837.0,42834.0,0.058357]
[1641926243569,0.94067287,42837.0,42833.0,0.0999]
[1641926243772,0.173137,42836.0,42833.0,0.0999]
[1641926244028,0.593137,42836.0,42833.0,0.0999]
[1641926244228,0.41396667,42835.0,42825.0,0.00015]
[1641926244533,0.00125515,42831.0,42825.0,0.00015]
[1641926244727,0.058384,42828.0,42825.0,0.00015]
[1641926244928,0.058384,42828.0,42816.0,0.00015]
[1641926244929,0.173137,42827.0,42820.0,0.0999]
[1641926245131,0.44772407,42823.0,42820.0,0.0999]
[1641926245331,0.44772634,42828.0,42821.0,0.00015]
[1641926245530,0.03795215,42831.0,42821.0,0.00015]
[1641926245728,0.03795215,42831.0,42819.0,0.0003]
[1641926245729,0.00050987,42824.0,42819.0,0.0003]
[1641926245932,0.00050987,42824.0,42821.0,0.0999]
[1641926246137,0.00050987,42824.0,42821.0,0.002]
[1641926246328,0.00050987,42824.0,42823.0,0.0999]
[1641926246531,0.00050987,42824.0,42823.0,0.59215]
[1641926246731,0.014,42831.0,42823.0,0.5923]
[1641926246930,0.00050989,42826.0,42823.0,0.116882]
[1641926247130,0.00050989,42826.0,42824.0,0.00015]
[1641926247979,0.0005099,42827.0,42824.0,0.00015]
[1641926248175,0.3505099,42827.0,42826.0,0.058367]
[1641926248376,0.85060131,42827.0,42825.0,0.0999]
[1641926248575,0.85060131,42827.0,42826.0,0.00015]
[1641926248773,0.34898023,42827.0,42826.0,0.00015]
[1641926250075,0.34898023,42827.0,42826.0,0.10005]
[1641926250276,0.76905014,42827.0,42826.0,0.11505]
[1641926250479,0.76905014,42827.0,42826.0,0.01515]
[1641926250877,1.10094574,42827.0,42826.0,0.01515]
[1641926251524,0.85401283,42827.0,42826.0,0.00015]
[1641926251927,0.85401283,42827.0,42818.0,0.0003]
[1641926252123,0.68087583,42827.0,42826.0,0.006]
[1641926252322,0.52211723,42827.0,42826.0,0.006]
[1641926252524,0.34898023,42827.0,42826.0,0.00615]
[1641926252724,0.33598023,42827.0,42826.0,0.00615]
[1641926253724,0.30598023,42827.0,42826.0,0.00615]
[1641926254125,0.91298023,42827.0,42826.0,0.04015]
[1641926254324,0.31298023,42827.0,42826.0,0.04015]
[1641926254724,0.31128023,42827.0,42826.0,0.04015]
[1641926254927,0.83915042,42827.0,42826.0,0.04015]
[1641926255171,0.83915042,42827.0,42819.0,0.116747]
[1641926255172,1.2,42825.0,42819.0,0.116747]
[1641926255375,1.2,42825.0,42814.0,0.42]
[1641926255376,0.00129423,42817.0,42814.0,0.42]
[1641926255574,0.00129423,42817.0,42812.0,0.00078496]
[1641926255776,0.11594423,42817.0,42812.0,0.00078496]
[1641926255973,0.75813545,42816.0,42812.0,0.00078496]
[1641926256172,0.46090068,42815.0,42812.0,0.02178496]
[1641926256374,0.0336239,42814.0,42812.0,0.02175466]
[1641926256874,1.13091518,42813.0,42812.0,0.02175466]
[1641926257076,1.13091518,42813.0,42810.0,0.56896303]
[1641926257077,0.00120412,42811.0,42810.0,0.00015]
[1641926257276,1.45748974,42811.0,42810.0,0.00015]
[1641926257577,1.45748974,42811.0,42803.0,0.56881303]
[1641926257578,1.45748974,42811.0,42804.0,0.00015]
[1641926257775,0.29972061,42810.0,42804.0,0.00015]
[1641926257976,0.55981245,42809.0,42804.0,0.00015]
[1641926258176,0.38439492,42808.0,42804.0,0.00015]
[1641926258380,0.44398559,42807.0,42803.0,0.00015]
[1641926258578,0.44398559,42807.0,42802.0,0.09505]
[1641926258579,1.208412,42805.0,42802.0,0.09505]
[1641926258776,0.278748,42804.0,42802.0,0.09505]
[1641926259030,0.0472,42804.0,42803.0,0.05677472]
[1641926259227,0.0472,42804.0,42802.0,0.09505]
[1641926259428,0.00703638,42815.0,42803.0,0.41941465]
[1641926259429,0.00123339,42814.0,42803.0,0.41941465]
[1641926259627,0.00123339,42814.0,42803.0,0.04389665]
[1641926259628,0.29951858,42811.0,42803.0,0.04389665]
[1641926259827,0.0472,42810.0,42802.0,0.09505]
[1641926260026,0.04848944,42810.0,42806.0,0.05891551]
[1641926260226,0.0472,42810.0,42806.0,0.05891551]
[1641926260825,0.0472,42810.0,42806.0,0.00051651]
[1641926261031,0.173137,42809.0,42803.0,0.116793]
[1641926261227,0.011,42811.0,42807.0,0.058398]
[1641926261426,0.00054946,42818.0,42810.0,0.3768139]
[1641926261630,0.00054946,42818.0,42817.0,0.00127557]
[1641926262227,0.38594318,42823.0,42817.0,0.00127557]
[1641926262427,0.00069963,42820.0,42817.0,0.00127557]
[1641926263275,0.00069963,42820.0,42817.0,0.058376]
[1641926263472,0.00015,42820.0,42811.0,0.0946]
[1641926263674,0.00015,42820.0,42813.0,0.00127229]
[1641926263872,0.00015,42820.0,42814.0,0.375518]
[1641926264273,0.00715,42820.0,42815.0,0.152879]
[1641926264473,0.00715,42820.0,42816.0,0.375518]
[1641926264677,0.00715,42820.0,42815.0,0.0945]
[1641926264874,0.00769963,42820.0,42816.0,0.375518]
[1641926265577,0.41570149,42820.0,42813.0,0.00127229]
[1641926265776,0.64515186,42820.0,42812.0,0.56881303]
[1641926266178,0.67872349,42820.0,42813.0,0.006]
[1641926266427,0.36259237,42815.0,42813.0,0.006]
[1641926267221,0.36259237,42815.0,42813.0,0.064382]
[1641926267621,0.00057158,42818.0,42813.0,0.058382]
[1641926267821,0.00057158,42818.0,42814.0,0.116766]
[1641926268223,0.028,42818.0,42815.0,0.05838]
[1641926268423,0.02857161,42818.0,42815.0,0.05838]
[1641926268625,0.39913298,42816.0,42815.0,0.05838]
[1641926269524,0.03415272,42825.0,42815.0,0.05838]
[1641926269726,0.00056904,42818.0,42815.0,0.05838]
[1641926270178,0.00056904,42818.0,42815.0,0.06438]
[1641926270179,0.47811583,42817.0,42815.0,0.06438]
[1641926270376,0.47311583,42817.0,42815.0,0.06438]
[1641926271578,0.47311583,42817.0,42815.0,0.05838]
[1641926272179,0.48411583,42817.0,42815.0,0.06538]
[1641926273578,0.47311583,42817.0,42815.0,0.05838]
[1641926274223,0.48511583,42817.0,42815.0,0.06738]
[1641926274420,0.48511583,42817.0,42816.0,0.375518]
[1641926274821,0.48511583,42817.0,42815.0,0.06738]
[1641926275423,0.70311583,42817.0,42815.0,0.05838]
[1641926276225,0.51611583,42817.0,42815.0,0.06438]
[1641926277530,0.93823592,42816.0,42815.0,0.05838]
[1641926277781,0.93823592,42816.0,42812.0,0.00127072]
[1641926277782,1.1,42815.0,42812.0,0.56881303]
[1641926277980,0.27328625,42814.0,42812.0,0.56881303]
[1641926278180,0.03530552,42813.0,42812.0,0.56881303]
[1641926278380,0.03530552,42813.0,42812.0,0.56981303]
[1641926278581,0.03530552,42813.0,42811.0,0.0945]
[1641926278582,1.2,42812.0,42811.0,0.0945]
[1641926278782,1.2,42811.0,42810.0,0.00090777]
[1641926278983,1.65337728,42811.0,42810.0,0.00015]
[1641926279382,1.65337728,42811.0,42809.0,0.00090775]
[1641926279581,1.84470991,42810.0,42809.0,0.00090775]
[1641926279783,1.84470991,42810.0,42809.0,0.00075775]
[1641926279981,0.25330587,42810.0,42809.0,0.00090775]
[1641926280184,0.25330587,42810.0,42809.0,0.00015]
[1641926280383,1.20015,42809.0,42807.0,0.00075776]
[1641926280584,1.2,42808.0,42797.0,0.86918188]
[1641926280785,1.27093434,42800.0,42797.0,0.86918188]
[1641926280983,1.27093434,42800.0,42797.0,0.0999]
[1641926281183,1.73747656,42800.0,42797.0,0.0999]
[1641926281451,2.39693708,42800.0,42797.0,0.0999]
[1641926281848,2.39693708,42800.0,42788.0,0.86544212]
[1641926281849,1.25842343,42798.0,42788.0,0.86544212]
[1641926282147,0.0012593,42789.0,42780.0,1.78024002]
[1641926282343,0.00128455,42783.0,42780.0,1.78024002]
[1641926282745,0.37757427,42783.0,42780.0,1.78024002]
[1641926282945,0.76038956,42783.0,42780.0,1.78024002]
[1641926283344,0.76038956,42783.0,42780.0,1.83867602]
[1641926283544,0.00120686,42781.0,42780.0,1.78024002]
[1641926283743,0.00120686,42781.0,42780.0,0.00015]
[1641926283944,0.75531187,42783.0,42780.0,0.00015]
[1641926284144,0.65855013,42783.0,42778.0,0.00084337]
[1641926284448,0.023,42781.0,42780.0,0.003]
[1641926284847,0.023,42781.0,42780.0,0.00315]
[1641926285476,0.7140936,42783.0,42780.0,0.00015]
[1641926285875,1.15320805,42783.0,42780.0,0.02]
[1641926286175,1.15320805,42783.0,42780.0,0.02015]
[1641926286375,0.88404908,42783.0,42780.0,0.02215]
[1641926286577,0.82561103,42783.0,42780.0,0.02215]
[1641926286778,0.39461197,42783.0,42780.0,0.02215]
[1641926286983,0.62461197,42783.0,42782.0,0.42]
[1641926287579,0.23,42783.0,42782.0,0.42]
[1641926287781,0.23,42783.0,42782.0,2.4173957]
[1641926287979,0.2991,42797.0,42783.0,0.9]
[1641926288178,0.2991,42797.0,42785.0,0.175227]
[1641926288380,0.30263452,42796.0,42787.0,0.00126582]
[1641926288577,0.49598583,42794.0,42787.0,0.00126582]
[1641926288779,0.49598583,42794.0,42789.0,0.05925224]
[1641926289228,0.48975829,42794.0,42789.0,0.05925224]
[1641926289731,0.00015,42800.0,42789.0,0.05925224]
[1641926289732,0.04365583,42800.0,42789.0,0.05925224]
[1641926290027,0.04365583,42800.0,42789.0,0.05925223]
[1641926290028,0.0354465,42797.0,42789.0,0.05925223]
[1641926290226,0.00015,42800.0,42789.0,0.05925223]
[1641926290227,0.06349901,42800.0,42789.0,0.05925223]
[1641926290427,0.03671256,42799.0,42789.0,0.05925223]
[1641926290627,0.04237414,42797.0,42789.0,0.05925223]
[1641926291027,0.30794862,42795.0,42789.0,0.058409]
[1641926291229,0.04237414,42797.0,42791.0,0.00084322]
[1641926291428,0.4394605,42795.0,42791.0,0.00084322]
[1641926291628,0.4394605,42795.0,42793.0,0.058416]
[1641926292030,0.40010581,42795.0,42791.0,0.00084322]
[1641926292234,0.007,42795.0,42789.0,0.30989711]
[1641926292429,0.007,42795.0,42792.0,0.0008432]
[1641926292674,0.007,42795.0,42794.0,0.8999]
[1641926292873,0.007,42795.0,42794.0,1.58411587]
[1641926293076,0.00015,42800.0,42795.0,1.05]
[1641926293274,0.00015,42800.0,42797.0,0.058394]
[1641926293476,0.00015,42800.0,42799.0,1.2999]
[1641926293678,0.99651735,42813.0,42800.0,0.8]
[1641926293978,0.99651735,42813.0,42801.0,0.40742691]
[1641926294173,0.00051735,42813.0,42804.0,0.00124058]
[1641926294373,0.00051735,42813.0,42807.0,0.058383]
[1641926294777,0.39109539,42814.0,42807.0,0.058383]
[1641926294976,0.00051757,42813.0,42807.0,0.058383]
[1641926295176,0.00051757,42813.0,42808.0,0.375826]
[1641926295375,0.00051757,42813.0,42809.0,0.71677]
[1641926295575,0.00051757,42813.0,42809.0,0.492596]
[1641926295977,0.39109539,42814.0,42809.0,0.492596]
[1641926296175,0.00051759,42813.0,42809.0,0.492596]
[1641926296429,0.00051759,42813.0,42809.0,0.498596]
[1641926296824,0.23015,42810.0,42809.0,0.498596]
[1641926297026,0.23015,42810.0,42809.0,0.12277]
[1641926297227,0.23015,42810.0,42809.0,0.17403259]
[1641926297429,0.00051759,42813.0,42810.0,0.5]
[1641926297627,0.00051759,42813.0,42810.0,0.1467]
[1641926297927,0.00051759,42813.0,42809.0,0.11803259]
[1641926298329,0.39502153,42818.0,42813.0,0.058382]
[1641926298728,0.38125647,42819.0,42813.0,0.058382]
[1641926299329,0.33125647,42819.0,42813.0,0.058382]
[1641926299532,0.00015,42820.0,42814.0,0.3020723]
[1641926299735,0.002,42826.0,42819.0,1.20124221]
[1641926299736,0.00207032,42825.0,42819.0,1.20124221]
[1641926299934,0.00015,42830.0,42824.0,1.2]
[1641926300175,0.00015,42830.0,42826.0,0.37702682]
[1641926300375,0.00015,42830.0,42826.0,0.52412682]
[1641926300576,0.00015,42830.0,42826.0,0.67412682]
[1641926300976,0.00015,42830.0,42829.0,1.42706259]
[1641926301174,0.002,42838.0,42829.0,0.375826]
[1641926301374,0.002,42838.0,42828.0,0.058347]
[1641926301574,0.002,42838.0,42828.0,0.105547]
[1641926301973,0.058368,42836.0,42828.0,0.105547]
[1641926302173,0.52065776,42836.0,42828.0,0.105547]
[1641926302374,0.29415735,42832.0,42828.0,0.105547]
[1641926302576,0.49543769,42835.0,42828.0,0.105547]
[1641926303374,0.00050167,42834.0,42828.0,0.058347]
[1641926303775,0.00050167,42834.0,42826.0,0.0999]
[1641926303776,0.3480343,42834.0,42826.0,0.0999]
[1641926304035,0.3480343,42834.0,42823.0,0.00084288]
[1641926304036,1.17236126,42827.0,42823.0,0.00084288]
[1641926304229,0.36065165,42826.0,42820.0,0.00015]
[1641926304430,0.30740026,42821.0,42820.0,0.00015]
[1641926304628,0.30740026,42821.0,42817.0,0.00015]
[1641926305230,0.30740026,42821.0,42818.0,0.375826]
[1641926305427,0.30740026,42821.0,42817.0,0.058532]
[1641926305629,0.30740026,42821.0,42819.0,0.00015]
[1641926305829,0.30740026,42821.0,42817.0,0.0592249]
[1641926306030,0.30740026,42821.0,42817.0,0.0008429]
[1641926306230,0.3020723,42820.0,42817.0,0.0008429]
[1641926306428,0.3020723,42820.0,42817.0,0.0228429]
[1641926306429,0.52636548,42820.0,42817.0,0.0228429]
[1641926306628,0.004816,42819.0,42817.0,0.022]
[1641926306827,0.054816,42819.0,42817.0,0.022]
[1641926307027,0.000816,42819.0,42817.0,0.022]
[1641926307231,0.3020723,42823.0,42817.0,0.022]
[1641926307232,0.0005015,42827.0,42818.0,0.00125511]
[1641926307430,0.0005015,42827.0,42826.0,0.0999]
[1641926307677,0.0005015,42827.0,42826.0,0.15951276]
[1641926307879,0.11644086,42836.0,42826.0,0.53526676]
[1641926308076,0.00050164,42829.0,42827.0,0.375754]
[1641926308276,0.00050164,42829.0,42828.0,0.3499]
[1641926308475,0.00050164,42829.0,42828.0,0.475654]
[1641926308677,0.00050164,42829.0,42828.0,0.53342984]
[1641926309075,0.41846883,42833.0,42828.0,0.53342984]
[1641926309276,0.00050165,42831.0,42829.0,0.375754]
[1641926309476,0.000387,42829.0,42828.0,0.15767584]
[1641926309675,0.41640524,42833.0,42828.0,0.15767584]
[1641926310376,0.34700557,42830.0,42828.0,0.16267584]
[1641926311175,0.38563059,42831.0,42828.0,0.16267584]
[1641926311623,0.38563059,42831.0,42828.0,0.15767584]
[1641926312122,0.38563059,42831.0,42828.0,0.058363]
[1641926312424,0.45891295,42830.0,42828.0,0.065363]
[1641926312824,0.39463059,42831.0,42828.0,0.065363]
[1641926313527,0.38563059,42831.0,42828.0,0.058363]
[1641926313925,0.7930438,42831.0,42828.0,0.058363]
[1641926314124,0.7929438,42831.0,42828.0,0.058363]
[1641926314324,0.8019438,42831.0,42828.0,0.065363]
[1641926315978,0.8519438,42831.0,42828.0,0.007]
[1641926316177,0.84997685,42831.0,42825.0,0.00084283]
[1641926316376,0.84997685,42831.0,42828.0,0.001]
[1641926316377,0.87297685,42831.0,42828.0,0.001]
[1641926317679,0.84997685,42831.0,42825.0,0.00084283]
[1641926317878,0.04358412,42830.0,42826.0,0.058372]
[1641926318284,0.04866031,42829.0,42826.0,0.058372]
[1641926318483,0.03366244,42830.0,42825.0,0.00084283]
[1641926318681,0.35256573,42824.0,42823.0,0.116739]
[1641926318931,1.17614876,42824.0,42820.0,0.00015]
[1641926319325,1.17614876,42824.0,42819.0,0.09945]
[1641926319326,0.058384,42823.0,42819.0,0.09945]
[1641926319526,1.17614876,42824.0,42819.0,0.09945]
[1641926319725,1.17614876,42824.0,42820.0,0.00015]
[1641926319925,0.90625755,42824.0,42820.0,0.05853]
[1641926320125,0.90625755,42824.0,42820.0,0.056971]
[1641926320327,0.91025755,42824.0,42820.0,0.057971]
[1641926320526,0.82758303,42824.0,42820.0,0.057971]
[1641926320727,0.36671631,42824.0,42820.0,0.057971]
[1641926321327,0.36671631,42824.0,42820.0,0.05881387]
[1641926321528,0.36271631,42824.0,42820.0,0.05781387]
[1641926321729,0.33045603,42823.0,42820.0,0.05781387]
[1641926322230,0.63740003,42824.0,42820.0,0.056971]
[1641926322428,0.003,42823.0,42820.0,0.064971]
[1641926324275,0.012,42823.0,42820.0,0.062971]
[1641926324474,0.012,42823.0,42821.0,0.375754]
[1641926324674,0.012,42823.0,42820.0,0.062971]
[1641926325276,0.39131369,42823.0,42820.0,0.062971]
[1641926325574,0.69437759,42823.0,42820.0,0.056971]
[1641926325775,0.69437759,42823.0,42819.0,0.10014287]
[1641926325975,0.69437759,42823.0,42819.0,0.0993]
[1641926326181,0.69437759,42823.0,42819.0,0.15852287]
[1641926326432,0.72637759,42823.0,42819.0,0.15952287]
[1641926327022,0.72637759,42823.0,42819.0,0.15868]
[1641926327222,0.67637759,42823.0,42819.0,0.15952288]
[1641926327624,0.64437759,42823.0,42819.0,0.15852288]
[1641926327824,0.64437759,42823.0,42819.0,0.00084288]
[1641926328223,0.64437759,42823.0,42819.0,0.058381]
[1641926328423,0.66337759,42823.0,42819.0,0.05922388]
[1641926328924,0.66337759,42823.0,42819.0,0.05422388]
[1641926329523,0.64437759,42823.0,42819.0,0.053381]
[1641926329824,0.64437759,42823.0,42819.0,0.05422388]
[1641926330472,0.34531369,42823.0,42819.0,0.05422388]
[1641926330673,0.34531369,42823.0,42819.0,0.053381]
[1641926330971,0.34531369,42823.0,42819.0,0.05416801]
[1641926331571,0.63038819,42823.0,42819.0,0.05416801]
[1641926331773,0.32931369,42823.0,42819.0,0.05416801]
[1641926331972,0.32931369,42823.0,42819.0,0.053381]
[1641926332172,0.32931369,42823.0,42819.0,0.05416801]
[1641926332373,0.33631369,42823.0,42819.0,0.05416801]